bitfinex/quotes_ETHUSD_20250808
["timestamp","ask_amount","ask_price","bid_price","bid_amount"]
[1754677046939,6.39405087,4043.6,4043.2,0.124]
[1754677047139,3.921,4043.5,4043.2,0.124]
[1754677047908,3.921,4043.5,4043.3,2.47317531]
[1754677048250,3.921,4043.5,4043.4,2.47316614]
[1754677048606,3.921,4043.5,4043.4,2.59716614]
[1754677048808,2.47223091,4045.0,4043.5,2.47304415]
[1754677048809,3.921,4044.1,4043.5,2.47304415]
[1754677049038,3.921,4044.1,4043.6,2.47299368]
[1754677049252,3.921,4044.1,4044.0,0.124]
[1754677049637,0.124,4044.7,4044.0,0.124]
[1754677049825,3.921,4044.8,4044.2,2.47263163]
[1754677050006,3.921,4044.8,4044.6,2.59638836]
[1754677050235,3.921,4044.8,4044.6,0.124]
[1754677050814,3.921,4044.8,4044.7,2.59637125]
[1754677051016,3.921,4044.8,4044.7,3.02807125]
[1754677051237,3.921,4045.5,4044.7,0.5557]
[1754677051436,3.921,4045.5,4045.4,0.1232]
[1754677051709,3.921,4045.5,4045.4,2.59514344]
[1754677052110,0.002,4045.6,4045.5,2.47188233]
[1754677052319,0.002,4045.6,4045.5,2.90358233]
[1754677052523,0.002,4045.6,4045.4,0.1232]
[1754677052953,0.002,4045.6,4044.5,2.47248961]
[1754677052954,2.47208525,4045.2,4044.4,2.47254365]
[1754677053122,2.47231915,4044.8,4043.9,3.0]
[1754677053444,2.47226711,4044.9,4044.7,0.124]
[1754677053810,0.9495,4044.9,4044.7,0.124]
[1754677054144,3.92,4045.1,4044.7,2.59635732]
[1754677054312,3.92,4045.1,4044.7,0.124]
[1754677054518,2.472307,4044.9,4044.7,0.124]
[1754677054958,0.9495,4044.9,4044.7,0.124]
[1754677055254,3.92,4045.1,4044.7,0.124]
[1754677055455,2.47223451,4045.0,4044.7,0.124]
[1754677055623,2.47226456,4044.9,4044.7,0.124]
[1754677055827,1.4079,4045.0,4044.7,0.124]
[1754677056156,0.79240397,4045.0,4044.7,0.124]
[1754677056353,3.92,4045.1,4044.7,0.124]
[1754677057051,3.42168831,4045.0,4044.7,0.124]
[1754677057254,4.8695,4045.0,4044.7,0.124]
[1754677057418,3.88015486,4044.9,4043.6,3.0]
[1754677057622,3.88015486,4044.9,4044.4,0.124]
[1754677057623,1.5319,4044.9,4044.4,0.124]
[1754677057824,3.92,4045.0,4044.6,0.124]
[1754677058042,4.8695,4045.0,4044.6,0.124]
[1754677058245,0.9495,4044.9,4044.6,0.124]
[1754677058442,6.85061577,4045.0,4044.6,0.124]
[1754677058443,4.3784,4045.0,4044.6,0.124]
[1754677058663,0.69745378,4044.9,4044.6,0.124]
[1754677060256,3.92,4045.0,4044.8,2.47228326]
[1754677060622,3.92,4045.0,4044.9,0.124]
[1754677064758,3.92,4045.0,4043.7,2.47297276]
[1754677064759,2.472249,4044.9,4043.7,2.47297276]
[1754677064935,2.47240777,4044.7,4044.4,0.124]
[1754677065136,6.39144356,4044.6,4044.4,0.124]
[1754677065534,7.34094356,4044.6,4044.4,0.124]
[1754677065728,4.8685,4044.6,4044.4,0.124]
[1754677066358,7.34095931,4044.6,4044.4,0.124]
[1754677066532,4.8685,4044.6,4044.4,0.124]
[1754677066958,3.919,4044.6,4044.4,0.124]
[1754677070449,3.919,4044.6,4044.4,2.59653429]
[1754677071467,3.919,4044.6,4044.4,0.124]
[1754677071973,3.8803935,4044.5,4044.4,0.124]
[1754677072770,1.4079,4044.5,4044.4,0.124]
[1754677073179,3.8803935,4044.5,4044.4,0.124]
[1754677074138,1.4079,4044.5,4044.4,0.124]
[1754677074335,2.4727497,4044.1,4043.4,6.78315523]
[1754677074673,6.3917992,4044.0,4043.9,0.124]
[1754677075238,7.7829992,4044.0,4043.9,0.124]
[1754677076483,2.47286035,4043.9,4043.5,4.31]
[1754677076771,3.919,4044.0,4043.6,0.124]
[1754677076945,2.47276073,4044.1,4043.6,0.124]
[1754677077269,3.919,4043.9,4043.6,0.124]
[1754677077488,1.3912,4044.3,4043.6,0.124]
[1754677077651,2.47232544,4044.8,4044.1,2.47268914]
[1754677077839,3.918,4044.7,4044.3,2.47260812]
[1754677078041,3.918,4044.7,4044.4,2.47255076]
[1754677078240,3.918,4044.7,4044.2,0.124]
[1754677078668,5.3092,4044.7,4044.2,0.124]
[1754677078870,3.918,4044.6,4044.5,2.47246072]
[1754677079175,3.918,4044.6,4044.5,0.124]
[1754677080370,5.94823246,4044.6,4044.5,0.124]
[1754677081255,8.42066483,4044.6,4044.5,0.124]
[1754677081449,5.94823246,4044.6,4044.5,0.124]
[1754677082672,3.918,4044.6,4044.5,0.124]
[1754677083682,0.124,4044.9,4044.5,2.59648304]
[1754677083975,3.918,4044.8,4044.5,0.124]
[1754677084178,3.918,4044.7,4044.5,0.124]
[1754677084605,1.5152,4045.2,4044.5,0.124]
[1754677084606,3.918,4044.6,4044.5,2.5964935]
[1754677084753,1.0542,4045.2,4044.7,2.47237074]
[1754677084952,3.918,4045.1,4044.7,2.47237074]
[1754677085195,3.918,4045.1,4044.6,2.47242642]
[1754677085394,3.918,4045.1,4044.5,0.124]
[1754677085593,2.47230777,4044.9,4044.5,0.124]
[1754677085769,3.918,4044.8,4044.5,0.124]
[1754677086097,3.918,4044.8,4043.9,2.47282723]
[1754677086098,0.124,4044.7,4044.1,0.124]
[1754677086398,2.47244244,4044.6,4044.1,0.124]
[1754677086589,3.918,4044.5,4044.1,0.124]
[1754677086778,7.32074258,4044.5,4044.1,0.124]
[1754677087097,4.8482,4044.5,4044.1,0.124]
[1754677087390,4.8482,4044.5,4044.3,0.124]
[1754677087391,2.47255464,4044.4,4044.3,0.124]
[1754677087790,2.03025546,4044.4,4043.9,4.31]
[1754677087964,2.4727992,4044.0,4043.9,4.31]
[1754677088169,2.4729215,4043.8,4043.7,0.124]
[1754677088575,2.4729215,4043.8,4043.5,0.124]
[1754677088576,2.47305845,4043.6,4043.5,0.124]
[1754677088752,1.5152,4043.8,4043.2,0.124]
[1754677088959,1.19724942,4044.8,4044.4,2.47252122]
[1754677089271,2.47228997,4044.9,4043.7,12.33468859]
[1754677089467,3.917,4044.8,4043.7,12.33468859]
[1754677089669,3.917,4044.8,4043.6,3.30974344]
[1754677089670,3.917,4044.8,4044.7,2.47237125]
[1754677089870,3.917,4044.8,4044.4,2.47251275]
[1754677089871,3.917,4044.8,4044.6,2.47241617]
[1754677090059,0.002,4045.3,4044.6,2.47237811]
[1754677090263,3.917,4045.2,4044.7,2.47232519]
[1754677090476,3.917,4045.2,4044.6,2.47241937]
[1754677090693,3.917,4045.2,4044.4,2.47255188]
[1754677091303,6.38911158,4045.2,4044.5,2.47248065]
[1754677092083,1.3912,4045.1,4043.8,6.917]
[1754677092283,1.3912,4045.1,4044.0,2.47275451]
[1754677092506,2.47239351,4044.7,4043.7,5.47298022]
[1754677092820,3.917,4044.6,4044.1,2.47271602]
[1754677092991,3.917,4044.6,4044.2,2.47266422]
[1754677093311,0.461,4045.1,4043.8,2.4729215]
[1754677093612,6.683585,4046.3,4045.2,2.47206565]
[1754677093613,0.002,4046.3,4045.2,2.47206565]
[1754677093793,0.002,4046.3,4045.4,2.47194344]
[1754677093978,0.002,4046.3,4045.2,9.4137863]
[1754677093979,0.002,4046.3,4046.2,2.47145469]
[1754677094178,0.002,4046.3,4046.2,21.74785782]
[1754677094369,0.002,4046.3,4046.2,21.72314328]
[1754677094568,0.002,4046.7,4046.6,2.47121039]
[1754677096497,0.002,4046.7,4046.6,6.38721039]
[1754677097896,0.002,4046.7,4046.6,2.47121039]
[1754677098415,0.002,4046.7,4045.7,0.4362]
[1754677098578,0.463,4046.7,4046.2,2.4714431]
[1754677098919,0.9302,4046.6,4046.1,2.47151014]
[1754677099080,0.9302,4046.6,4046.2,2.47145355]
[1754677099286,0.9302,4046.6,4046.5,0.1232]
[1754677099486,0.002,4046.7,4046.5,0.1232]
[1754677099698,0.002,4046.7,4046.6,3.03061039]
[1754677100023,0.002,4046.7,4046.6,6.43111039]
[1754677100926,0.002,4046.7,4046.6,9.94561039]
[1754677101427,0.002,4046.7,4046.6,20.40899659]
[1754677101991,0.002,4046.7,4046.6,20.00849659]
[1754677102486,0.002,4046.7,4046.6,16.09349659]
[1754677102690,0.002,4046.7,4046.6,20.00749659]
[1754677103020,0.002,4046.7,4046.6,16.09349659]
[1754677103377,0.002,4046.7,4046.6,20.00749659]
[1754677104401,0.002,4047.6,4047.5,2.4706609]
[1754677104612,0.002,4047.6,4047.5,9.3846609]
[1754677104826,0.002,4047.6,4047.5,9.5078609]
[1754677106919,0.002,4047.6,4047.5,10.3780609]
[1754677108326,0.002,4047.6,4047.5,9.9775609]
[1754677109133,0.002,4047.6,4047.5,10.3780609]
[1754677109331,0.002,4047.6,4047.5,9.9775609]
[1754677109700,0.002,4047.6,4047.5,9.5058609]
[1754677110005,0.949,4047.6,4047.5,9.5058609]
[1754677110329,0.002,4047.6,4047.5,9.5058609]
[1754677112330,0.002,4048.0,4047.9,2.47041675]
[1754677112530,0.002,4048.1,4048.0,5.47035573]
[1754677113769,0.002,4048.2,4048.1,2.4702947]
[1754677113770,1e-08,4048.2,4048.1,2.4702947]
[1754677113947,1e-08,4048.2,4048.1,9.3822947]
[1754677114148,1e-08,4048.2,4048.1,9.8519947]
[1754677114554,1e-08,4048.2,4048.1,15.57408]
[1754677115488,0.002,4049.0,4048.1,15.57408]
[1754677115489,0.002,4049.0,4048.9,15.53269281]
[1754677115656,0.002,4049.0,4048.9,19.56689281]
[1754677116565,0.002,4049.0,4048.9,19.44369281]
[1754677116768,0.002,4049.0,4048.9,21.80296934]
[1754677117151,0.002,4049.0,4048.9,17.89196934]
[1754677117355,0.949,4049.0,4048.9,9.50400661]
[1754677117784,0.002,4049.0,4048.9,9.38080661]
[1754677117985,0.002,4049.0,4048.9,9.50400661]
[1754677118485,0.947,4049.6,4049.5,2.46944067]
[1754677118486,1.3636,4049.6,4049.5,2.46944067]
[1754677118685,1.3636,4049.6,4049.5,6.37944067]
[1754677118994,1.3636,4049.6,4049.5,6.50264067]
[1754677122757,1.3636,4049.6,4049.5,2.59264067]
[1754677123186,0.947,4050.1,4049.8,2.46921524]
[1754677123401,0.1232,4050.6,4049.7,2.46929656]
[1754677123402,1.4116,4049.9,4049.7,2.46929656]
[1754677123593,2.59198662,4050.6,4049.7,2.46929656]
[1754677123594,2.46890939,4050.4,4049.7,2.46929656]
[1754677123886,2.46890939,4050.4,4049.6,3.909]
[1754677123887,2.46890939,4050.4,4049.9,0.1232]
[1754677124387,1.41244034,4050.0,4049.9,0.1232]
[1754677127398,1.94232049,4050.0,4048.3,3.908]
[1754677127564,1.94148015,4049.9,4048.4,2.47011164]
[1754677127763,3.88091751,4049.8,4048.8,2.46982515]
[1754677127998,2.4696136,4049.3,4048.3,6.37811501]
[1754677128168,1.4116,4049.2,4048.8,2.46986063]
[1754677128364,2.46948769,4049.5,4048.8,2.46986063]
[1754677128561,1.4116,4049.1,4048.7,2.46991509]
[1754677128761,1.4116,4049.0,4048.7,2.46991509]
[1754677128998,2.46951043,4049.4,4048.5,3.908]
[1754677128999,0.53012906,4049.4,4048.5,3.908]
[1754677129170,1.47712906,4049.5,4049.2,2.46958266]
[1754677129361,0.53012906,4049.4,4049.2,2.46958266]
[1754677129700,0.4646,4049.4,4049.2,2.46958266]
[1754677129910,0.947,4049.3,4049.2,2.46958266]
[1754677130100,0.947,4049.3,4048.5,2.47003187]
[1754677130101,2.46962985,4049.2,4048.5,2.46999945]
[1754677130426,0.55,4049.0,4048.1,5.7220853]
[1754677130577,1.21235019,4048.7,4046.8,3.908]
[1754677130885,1.21235019,4048.7,4046.3,0.4707]
[1754677130886,2.4707143,4047.5,4046.7,2.47114933]
[1754677131095,3.0,4048.3,4046.3,0.001]
[1754677131096,1.9426537,4047.4,4046.3,0.001]
[1754677131282,2.47101464,4047.0,4046.3,0.001]
[1754677131486,0.5310537,4047.2,4046.3,0.001]
[1754677131702,0.5310537,4047.6,4046.7,12.29896273]
[1754677131900,1.9426537,4047.9,4047.3,2.47078253]
[1754677132114,0.5310537,4047.8,4046.8,2.47103493]
[1754677132282,2.93514567,4047.7,4046.9,2.47099489]
[1754677132621,1.4116,4047.6,4046.6,3.909]
[1754677132783,1.4116,4047.6,4047.1,2.47085347]
[1754677133129,0.5310537,4047.8,4046.6,3.909]
[1754677133130,0.5310537,4047.9,4047.4,2.47068013]
[1754677133298,0.5310537,4048.0,4047.4,2.47068013]
[1754677133616,1.4116,4047.8,4047.4,2.47068013]
[1754677133826,1.4116,4047.7,4047.4,2.47068013]
[1754677134134,0.9511,4047.6,4047.4,2.47068013]
[1754677134287,0.5310537,4048.0,4047.4,2.47067308]
[1754677134483,3.908,4048.1,4046.8,3.0]
[1754677134484,1.381,4047.9,4047.7,2.47052329]
[1754677134684,1.381,4047.9,4047.0,3.908]
[1754677134996,1.381,4047.9,4047.5,2.47060671]
[1754677135194,0.9511,4047.8,4047.5,2.47060671]
[1754677135387,0.9511,4047.8,4047.6,2.47054714]
[1754677135589,0.5310537,4048.2,4047.5,2.47060538]
[1754677135590,1.4821537,4048.2,4047.5,2.47060538]
[1754677135937,1.96754185,4048.2,4047.5,2.47060538]
[1754677136286,5.34448815,4048.2,4047.5,2.47060538]
[1754677136613,5.34448815,4048.2,4047.0,3.908]
[1754677136614,0.9511,4048.2,4047.2,14.76976251]
[1754677136781,0.9511,4048.2,4047.8,2.47046021]
[1754677137203,3.908,4048.3,4047.3,2.47078299]
[1754677137404,3.908,4048.3,4048.1,0.1232]
[1754677137808,0.9511,4048.2,4048.1,0.1232]
[1754677138827,1.381,4048.2,4048.1,0.1242]
[1754677139025,3.908,4048.3,4048.1,0.1242]
[1754677139237,0.9511,4048.2,4048.1,0.1242]
[1754677139437,1.381,4048.2,4048.1,0.1242]
[1754677140300,4.38013368,4048.2,4048.1,0.001]
[1754677140535,2.47030885,4048.1,4047.6,0.001]
[1754677140744,0.1232,4047.9,4047.6,0.001]
[1754677140902,1.381,4048.0,4047.6,0.001]
[1754677141105,1.05931218,4048.2,4047.6,0.001]
[1754677141106,0.9511,4047.8,4047.7,0.1232]
[1754677141298,3.908,4048.1,4047.7,0.1232]
[1754677141299,0.5289,4048.2,4047.7,0.1232]
[1754677141503,1.381,4048.1,4047.7,0.1232]
[1754677141726,1.381,4048.1,4047.6,0.001]
[1754677141727,2.47053882,4047.7,4047.6,0.001]
[1754677142104,1.381,4047.7,4047.6,0.001]
[1754677142325,3.85153882,4047.7,4047.6,0.001]
[1754677142502,7.75953882,4047.7,4047.6,0.001]
[1754677142838,5.289,4047.7,4047.6,0.001]
[1754677143198,6.07726038,4047.7,4047.6,0.001]
[1754677143451,9.0977992,4047.7,4047.6,0.001]
[1754677143734,2.47107021,4046.9,4046.6,0.001]
[1754677143963,0.55,4047.5,4046.6,0.001]
[1754677143964,0.55,4046.7,4046.6,0.001]
[1754677144102,7.49814933,4046.7,4046.6,0.001]
[1754677144452,8.87914933,4046.7,4046.6,0.001]
[1754677146408,6.408,4046.7,4046.6,0.001]
[1754677146603,8.32914933,4046.7,4046.6,0.001]
[1754677148866,5.858,4046.7,4046.6,0.001]
[1754677149158,8.32914933,4046.7,4046.6,0.001]
[1754677149458,11.87914933,4046.7,4046.6,0.001]
[1754677149659,11.87914933,4046.7,4046.2,0.001]
[1754677149660,3.02133254,4046.4,4046.2,0.001]
[1754677149955,7.99118613,4046.4,4046.2,0.001]
[1754677150255,9.73018613,4046.4,4046.2,0.001]
[1754677150439,3.908,4046.4,4046.2,0.001]
[1754677150639,0.9511,4046.8,4046.2,0.001]
[1754677150870,2.4712543,4046.6,4045.8,2.47069289]
[1754677151244,2.47121625,4046.6,4045.7,0.001]
[1754677151459,1.381,4046.5,4045.7,0.001]
[1754677151757,0.5289,4046.4,4045.7,2.47272992]
[1754677151926,3.908,4046.3,4045.8,2.47165472]
[1754677152125,3.908,4046.3,4045.7,0.001]
[1754677152126,3.908,4046.3,4046.0,2.47156269]
[1754677152322,3.908,4046.3,4045.8,2.47163903]
[1754677152962,3.908,4046.3,4045.7,2.47274046]
[1754677153269,3.908,4046.3,4045.7,0.001]
[1754677154069,3.908,4046.3,4045.7,2.47275353]
[1754677154253,3.908,4046.3,4045.7,0.001]
[1754677154254,4.68403625,4046.3,4045.7,0.001]
[1754677154956,4.68403625,4046.3,4045.7,2.47274874]
[1754677155160,4.68403625,4046.3,4045.8,2.47168586]
[1754677155350,3.908,4046.3,4045.9,2.4716282]
[1754677155548,3.908,4046.2,4045.9,2.4716282]
[1754677155748,3.908,4046.2,4045.8,2.47169339]
[1754677156084,2.47163795,4045.9,4045.7,0.001]
[1754677156285,6.81996284,4045.8,4045.7,0.001]
[1754677156460,7.77106284,4045.8,4045.7,0.001]
[1754677157079,5.2993638,4045.8,4045.7,0.001]
[1754677157394,3.908,4045.8,4045.7,0.001]
[1754677159878,2.5947076,4046.2,4045.7,0.001]
[1754677159879,0.1232,4046.2,4045.7,0.001]
[1754677160064,3.908,4046.6,4046.2,2.471432]
[1754677160278,3.908,4046.6,4045.7,0.4459]
[1754677160771,3.908,4046.6,4046.1,2.47145684]
[1754677160970,3.908,4046.6,4046.2,2.4714537]
[1754677161497,0.9511,4047.6,4047.0,2.47090573]
[1754677161694,3.8513027,4048.1,4046.6,15.74386273]
[1754677162009,2.4706038,4047.6,4046.9,2.47101788]
[1754677162295,3.908,4047.5,4047.0,2.47095407]
[1754677162594,3.908,4047.5,4047.0,2.47095634]
[1754677162595,3.908,4047.4,4047.0,2.47095634]
[1754677162802,3.908,4047.4,4046.6,15.74386273]
[1754677162803,3.908,4047.4,4047.2,2.47079677]
[1754677163295,3.908,4047.4,4047.1,2.4708995]
[1754677163702,3.908,4047.4,4047.2,2.47082353]
[1754677163894,3.908,4047.3,4047.2,2.47082353]
[1754677164095,3.908,4047.3,4047.1,2.47089663]
[1754677164282,3.908,4047.3,4047.0,2.47095973]
[1754677164479,3.908,4047.3,4046.1,3.0]
[1754677164686,3.908,4047.3,4046.9,2.47102071]
[1754677165408,3.908,4047.3,4046.1,3.0]
[1754677165592,3.907,4047.3,4047.2,2.47079108]
[1754677166434,0.002,4048.3,4047.0,12.29896273]
[1754677166608,0.65747663,4048.3,4047.8,2.47041768]
[1754677166910,3.907,4048.2,4047.3,5.47077157]
[1754677167219,3.907,4048.2,4047.8,2.47042809]
[1754677167519,3.907,4048.2,4047.9,2.47041632]
[1754677167720,3.907,4048.2,4048.0,2.47031138]
[1754677168213,3.907,4048.2,4047.9,2.47039602]
[1754677168412,3.907,4048.2,4048.0,2.47034799]
[1754677168619,3.907,4048.2,4047.7,2.47047912]
[1754677168826,3.907,4048.2,4047.8,2.47045147]
[1754677169345,0.002,4048.3,4047.8,2.47045147]
[1754677169515,0.002,4048.3,4048.0,2.47034742]
[1754677169681,0.002,4048.3,4048.2,2.47023368]
[1754677169980,0.002,4048.3,4048.2,2.59343368]
[1754677170184,0.002,4048.3,4048.2,3.02103368]
[1754677171731,0.002,4048.3,4048.2,6.47973601]
[1754677171931,0.002,4048.3,4048.2,6.45503368]
[1754677174145,1e-08,4048.3,4048.2,6.45503368]
[1754677175054,1e-08,4048.3,4048.2,9.92603368]
[1754677175257,1e-08,4048.3,4048.2,10.36003368]
[1754677175566,0.002,4048.7,4048.2,10.36003368]
[1754677175567,1e-08,4048.7,4048.5,2.47005063]
[1754677175736,0.00284034,4050.0,4049.9,2.46919677]
[1754677175929,0.00284034,4050.0,4049.9,18.3189595]
[1754677176530,0.00284034,4050.0,4049.9,17.8913595]
[1754677177931,0.00284034,4050.0,4049.9,18.3189595]
[1754677178332,0.00284034,4050.0,4049.9,5.59239677]
[1754677178767,1.31444034,4050.0,4049.9,5.59239677]
[1754677179082,0.00284034,4050.0,4049.9,5.59239677]
[1754677181184,0.87804034,4050.0,4049.9,5.59239677]
[1754677181357,1.31444034,4050.0,4049.9,0.1232]
[1754677181558,1.31444034,4050.0,4049.9,2.59239677]
[1754677181890,0.00284034,4050.0,4049.9,3.01999677]
[1754677182985,0.00284034,4050.0,4049.9,6.01999677]
[1754677183187,0.00284034,4050.0,4049.9,5.59239677]
[1754677183584,0.00284034,4050.0,4049.9,9.49439677]
[1754677184511,0.00284034,4050.0,4049.9,5.59239677]
[1754677184868,2.46848345,4051.1,4049.9,5.59239677]
[1754677184869,0.65800378,4052.9,4050.0,3.55]
[1754677185081,6.06303494,4053.9,4050.0,3.55]
[1754677185082,5.18783494,4053.9,4053.7,2.4668821]
[1754677185283,5.18783494,4053.9,4052.7,2.4674908]
[1754677185284,5.18783494,4053.9,4053.8,4.052]
[1754677185587,6.49943494,4053.9,4053.8,6.51882125]
[1754677185901,5.18783494,4053.9,4053.8,2.46682125]
[1754677187739,5.18783494,4053.9,4053.7,4.051]
[1754677188107,5.18783494,4053.9,4053.7,6.51787939]
[1754677188428,5.18783494,4053.9,4053.7,4.051]
[1754677188929,6.49943494,4053.9,4053.8,4.043]
[1754677189127,5.62423494,4053.9,4053.8,4.043]
[1754677189332,5.18783494,4053.9,4053.8,4.043]
[1754677189536,5.18783494,4053.9,4053.8,6.50982125]
[1754677189736,5.18783494,4053.9,4053.8,6.50682125]
[1754677189932,5.18783494,4053.9,4053.8,2.46682125]
[1754677190135,5.18783494,4053.9,4053.8,6.50882125]
[1754677190556,5.18783494,4053.9,4053.4,3.0]
[1754677190846,5.18783494,4053.9,4053.5,6.50797389]
[1754677191146,5.18783494,4053.9,4053.7,2.46688001]
[1754677191309,5.18783494,4053.9,4053.8,6.50682125]
[1754677191505,5.18783494,4053.9,4053.8,21.80578398]
[1754677191837,1.81966505,4053.9,4053.8,18.19338398]
[1754677192136,0.01,4054.0,4053.9,2.4667604]
[1754677192310,0.01,4054.0,4053.9,2.8943604]
[1754677192510,1e-08,4054.0,4053.9,3.2964604]
[1754677192706,0.02466,4054.9,4054.8,2.46621288]
[1754677192941,8.2489798,4056.2,4054.9,5.46615206]
[1754677193118,8.2489798,4056.2,4056.1,2.46542245]
[1754677193307,8.2489798,4058.5,4056.2,3.0]
[1754677193508,8.2489798,4058.5,4056.5,2.46512156]
[1754677193509,2.46454916,4057.6,4056.5,2.46512156]
[1754677193739,8.2489798,4058.5,4056.6,4.133]
[1754677193905,4.133,4058.2,4056.6,4.133]
[1754677194109,8.2489798,4058.5,4057.2,12.29896273]
[1754677194327,2.46403176,4058.4,4056.2,12.29896273]
[1754677194510,2.46403176,4058.4,4056.3,4.139]
[1754677194827,2.46469811,4057.3,4056.3,4.139]
[1754677195024,4.139,4057.9,4057.2,0.1232]
[1754677195227,2.46469326,4057.3,4057.2,0.1232]
[1754677195444,3.86469326,4057.3,4057.2,0.1232]
[1754677195742,0.55,4057.2,4056.5,0.1232]
[1754677195941,2.46511857,4056.6,4056.5,0.1232]
[1754677196241,0.4930143,4056.6,4056.5,0.1232]
[1754677196441,5.2031,4057.0,4056.5,0.1232]
[1754677196442,0.9409,4057.0,4056.5,0.1232]
[1754677196652,1.4,4057.4,4056.9,0.1232]
[1754677196958,5.537,4057.3,4056.9,0.1232]
[1754677197246,2.46396409,4058.6,4055.6,2.46571923]
[1754677197247,0.9409,4058.2,4057.3,0.1232]
[1754677197449,0.9409,4058.2,4057.9,0.1232]
[1754677197654,0.14350506,4058.0,4057.9,0.1232]
[1754677197944,0.00318642,4058.0,4057.9,0.1232]
[1754677198249,0.00318642,4058.0,4057.9,6.94732884]
[1754677198447,0.00318642,4058.0,4057.9,5.58752884]
[1754677198743,0.00318642,4058.0,4057.9,0.1232]
[1754677199150,0.00318642,4058.0,4057.9,2.58752884]
[1754677199346,0.00318642,4058.0,4057.9,0.1232]
[1754677199514,0.00318642,4058.0,4057.9,2.46432884]
[1754677199711,0.00318642,4058.0,4057.9,6.94732884]
[1754677199951,8.2489798,4058.5,4057.9,6.94732884]
[1754677199952,8.2489798,4058.5,4058.4,2.46402523]
[1754677200153,8.2489798,4059.6,4059.5,2.46335755]
[1754677200352,8.2489798,4059.6,4058.4,17.38731972]
[1754677200353,10.48322778,4059.6,4058.6,3.0]
[1754677200556,8.2489798,4059.6,4058.4,1.3598]
[1754677200754,8.2489798,4059.6,4058.6,3.0]
[1754677200928,2.46341823,4059.4,4057.3,0.4381]
[1754677201132,1.4,4059.3,4057.3,0.4381]
[1754677201441,5.5429,4059.2,4057.3,0.4381]
[1754677201752,0.44,4059.2,4057.6,0.55]
[1754677201926,0.44,4059.2,4057.5,3.0]
[1754677201927,1.3809,4059.2,4057.8,3.0]
[1754677202143,2.46389551,4058.7,4057.7,0.4381]
[1754677202456,2.46511857,4056.6,4055.9,0.9217]
[1754677202629,4.169,4057.2,4055.2,10.45159449]
[1754677202832,0.9409,4056.8,4055.2,0.4381]
[1754677203243,2.46510652,4056.7,4055.4,2.46582883]
[1754677203444,2.46517934,4056.5,4055.2,2.46591938]
[1754677203618,0.55,4056.3,4054.3,0.740486]
[1754677203820,0.14,4056.7,4054.2,4.173]
[1754677203821,0.55,4055.9,4054.2,4.173]
[1754677204019,0.195,4055.9,4054.3,4.63576517]
[1754677204225,0.195,4055.9,4054.3,0.4381]
[1754677204451,0.195,4055.9,4054.4,4.174]
[1754677204634,3.0,4057.4,4056.1,2.46536225]
[1754677204635,5.1169,4057.0,4056.1,2.46536225]
[1754677204979,0.9409,4057.7,4056.2,3.0]
[1754677205331,5.1179,4057.7,4057.0,2.46486654]
[1754677205529,0.24638955,4058.6,4056.4,0.4381]
[1754677205728,0.9409,4058.8,4058.1,2.46420205]
[1754677205964,1.4,4058.8,4057.4,4.176]
[1754677206158,0.9409,4058.8,4057.4,4.176]
[1754677206477,0.002,4059.3,4057.5,8.12148571]
[1754677206762,0.002,4059.3,4059.2,2.46353961]
[1754677207142,0.002,4059.3,4059.2,5.90163961]
[1754677207341,0.002,4059.3,4059.2,5.46353961]
[1754677207531,0.002,4059.3,4059.2,6.82333961]
[1754677207967,8.2489798,4059.6,4059.5,2.46335755]
[1754677208264,8.2489798,4059.6,4059.5,10.08045755]
[1754677208570,0.0935,4059.9,4059.5,10.08045755]
[1754677208571,1e-08,4059.9,4059.8,3.01317552]
[1754677208764,1e-08,4059.9,4059.8,6.01317552]
[1754677208966,1e-08,4059.9,4059.8,10.19617552]
[1754677209263,0.002,4060.2,4060.1,6.01299352]
[1754677209431,0.002,4060.2,4060.1,5.46299352]
[1754677209636,0.002,4060.2,4060.1,11.00579352]
[1754677209852,0.002,4060.2,4060.1,11.12899352]
[1754677210365,0.002,4060.2,4060.1,10.20629352]
[1754677210540,0.002,4060.2,4060.1,6.02429352]
[1754677210740,0.002,4060.2,4060.1,5.58619352]
[1754677210967,0.002,4060.2,4060.1,0.1232]
[1754677211190,1.402,4060.2,4060.1,0.1232]
[1754677211473,1.5422,4060.2,4060.1,0.1232]
[1754677211634,1.0831,4060.2,4060.1,0.1232]
[1754677211834,0.002,4060.2,4060.1,2.58619352]
[1754677212660,0.002,4060.2,4060.1,3.02429352]
[1754677212864,0.002,4060.2,4060.1,3.1232]
[1754677213041,0.9429,4060.2,4060.1,3.1232]
[1754677213242,0.9429,4060.2,4060.1,0.1232]
[1754677213476,8.07193286,4060.2,4060.1,0.1232]
[1754677213774,2.45547604,4060.2,4057.9,4.207]
[1754677213977,5.607,4060.1,4058.0,6.67124964]
[1754677214141,2.46317552,4059.8,4058.0,6.67126447]
[1754677214486,0.55,4059.6,4057.7,3.0]
[1754677214638,0.9409,4059.7,4058.0,2.46426811]
[1754677214839,0.002,4060.2,4057.9,3.0]
[1754677214840,0.002,4060.2,4060.1,2.46299352]
[1754677215071,0.002,4060.2,4059.3,3.0]
[1754677215274,0.002,4060.2,4058.3,2.46408594]
[1754677215275,0.9409,4060.1,4058.3,2.46408594]
[1754677215449,0.9409,4060.1,4058.9,3.0]
[1754677215450,0.38648798,4060.0,4058.9,3.0]
[1754677215642,0.38648798,4060.0,4058.7,2.46384279]
[1754677215643,6.67716632,4059.9,4058.7,2.46378504]
[1754677215951,1.4,4059.8,4057.9,2.46429085]